fUSD/lending_fUSD_20240628
["ID","MTS","AMOUNT","RATE_DAILY","PERIOD"]
[330555513,1719565840484,-5000.0,0.00019178,2]
[330555514,1719565840495,-1086.46,0.00019178,2]
[330555515,1719565840505,-500.0,0.00019178,2]
[330555516,1719565840515,-534.49,0.00019178,2]
[330555517,1719565840524,-500.0,0.00019178,2]
[330555518,1719565840534,-2792.76,0.00019178,2]
[330555519,1719565840545,-2449.87,0.00019178,2]
[330555520,1719565840555,-500.0,0.00019178,2]
[330555521,1719565840564,-637.47,0.00019178,2]
[330555522,1719565840574,-807.9,0.00019178,2]
[330555523,1719565840584,-1312.2,0.00019178,2]
[330555524,1719565840594,-234.27831479,0.00019178,2]
[330555525,1719565840604,-14126.82834276,0.00019178,2]
[330555526,1719565840614,-500.0,0.00019178,2]
[330555527,1719565840624,-280.347083,0.00019178,2]
[330555528,1719565840634,-2324.98,0.00019178,2]
[330555529,1719565840643,-500.0,0.00019178,2]
[330555530,1719565840653,-280.347083,0.00019178,2]
[330555531,1719565840663,-1345.28,0.00019178,2]
[330555532,1719565840672,-280.347083,0.00019178,2]
[330555533,1719565840682,-500.0,0.00019178,2]
[330555534,1719565840692,-280.347083,0.00019178,2]
[330555535,1719565840702,-280.347083,0.00019178,2]
[330555536,1719565840711,-280.347083,0.00019178,2]
[330555537,1719565840721,-743.26,0.00019178,2]
[330555538,1719565840730,-280.347083,0.00019178,2]
[330555539,1719565840740,-500.0,0.00019178,2]
[330555540,1719565840750,-500.0,0.00019178,2]
[330555541,1719565840759,-280.347083,0.00019178,2]
[330555542,1719565840769,-280.347083,0.00019178,2]
[330555543,1719565840778,-500.0,0.00019178,2]
[330555544,1719565840788,-500.0,0.00019178,2]
[330555545,1719565840798,-280.347083,0.00019178,2]
[330555546,1719565840807,-567.54,0.00019178,2]
[330555547,1719565840816,-280.347083,0.00019178,2]
[330555548,1719565840825,-280.347083,0.00019178,2]
[330555549,1719565840836,-280.347083,0.00019178,2]
[330555550,1719565840845,-280.347083,0.00019178,2]
[330555551,1719565840854,-710.44,0.00019178,2]
[330555552,1719565840867,-151.0,0.00019178,2]
[330555554,1719565840876,-876.97,0.00019178,2]
[330555555,1719565840886,-280.347083,0.00019178,2]
[330555556,1719565840895,-1953.81,0.00019178,2]
[330555557,1719565840906,-1236.37,0.00019178,2]
[330555558,1719565840915,-280.347083,0.00019178,2]
[330555559,1719565840925,-151.0,0.00019178,2]
[330555560,1719565840935,-280.347083,0.00019178,2]
[330555561,1719565840944,-151.0,0.00019178,2]
[330555562,1719565840954,-151.0,0.00019178,2]
[330555564,1719565840964,-280.347083,0.00019178,2]
[330555565,1719565840973,-151.0,0.00019178,2]
[330555566,1719565840983,-280.347083,0.00019178,2]
[330555567,1719565840993,-500.0,0.00019178,2]
[330555568,1719565841002,-500.0,0.00019178,2]
[330555569,1719565841011,-280.347074,0.00019178,2]
[330555570,1719565841020,-500.0,0.00019178,2]
[330555571,1719565841029,-500.0,0.00019178,2]
[330555572,1719565841039,-151.0,0.00019178,2]
[330555573,1719565841048,-151.0,0.00019178,2]
[330555574,1719565841057,-151.0,0.00019178,2]
[330555575,1719565841067,-151.0,0.00019178,2]
[330555576,1719565841077,-151.0,0.00019178,2]
[330555577,1719565841087,-151.0,0.00019178,2]
[330555578,1719565841096,-151.0,0.00019178,2]
[330555579,1719565841105,-883.24,0.00019178,2]
[330555580,1719565841114,-151.0,0.00019178,2]
[330555581,1719565841123,-6951.39,0.00019178,2]
[330555582,1719565841133,-172.240193,0.00019178,2]
[330555583,1719565841142,-500.0,0.00019178,2]
[330555584,1719565841151,-572.14,0.00019178,2]
[330555585,1719565841160,-665.99,0.00019178,2]
[330555586,1719565841169,-3119.66,0.00019178,2]
[330555587,1719565841178,-500.0,0.00019178,2]
[330555588,1719565841191,-909.0,0.00019178,2]
[330555589,1719565841201,-500.0,0.00019178,2]
[330555590,1719565841210,-500.0,0.00019178,2]
[330555591,1719565841219,-500.0,0.00019178,2]
[330555592,1719565841229,-500.0,0.00019178,2]
[330555593,1719565841238,-500.17342921,0.00019178,2]
[330555594,1719565841247,-1080.27,0.00019178,2]
[330555595,1719565841256,-500.0,0.00019178,2]
[330555596,1719565841265,-994.93,0.00019178,2]
[330555597,1719565841275,-500.0,0.00019178,2]
[330555598,1719565841284,-2424.41,0.00019178,2]
[330555599,1719565841293,-500.0,0.00019178,2]
[330555600,1719565841302,-500.0,0.00019178,2]
[330555601,1719565841311,-820.89,0.00019178,2]
[330555602,1719565841320,-500.0,0.00019178,2]
[330555603,1719565841329,-500.0,0.00019178,2]
[330555604,1719565841339,-500.0,0.00019178,2]
[330555605,1719565841349,-500.0,0.00019178,2]
[330555606,1719565841358,-500.0,0.00019178,2]
[330555607,1719565841367,-151.0,0.00019178,2]
[330555608,1719565841376,-151.0,0.00019178,2]
[330555609,1719565841386,-500.0,0.00019178,2]
[330555610,1719565841395,-772.81,0.00019178,2]
[330555611,1719565841404,-2000.0,0.00019178,2]
[330555612,1719565841413,-500.0,0.00019178,2]
[330555613,1719565841423,-500.0,0.00019178,2]
[330555614,1719565841432,-500.0,0.00019178,2]
[330555615,1719565841441,-1252.76,0.00019178,2]
[330555616,1719565841450,-500.0,0.00019178,2]
[330555617,1719565841464,-732.8,0.00019178,2]
[330555618,1719565841473,-690.4,0.00019178,2]
[330555619,1719565841482,-560.24,0.00019178,2]
[330555620,1719565841491,-1312.92,0.00019178,2]
[330555621,1719565841501,-500.0,0.00019178,2]
[330555622,1719565841511,-1258.21,0.00019178,2]
[330555623,1719565841519,-500.0,0.00019178,2]
[330555624,1719565841529,-500.0,0.00019178,2]
[330555625,1719565841539,-1539.78,0.00019178,2]
[330555626,1719565841549,-500.0,0.00019178,2]
[330555627,1719565841558,-500.0,0.00019178,2]
[330555628,1719565841567,-500.0,0.00019178,2]
[330555629,1719565841577,-500.0,0.00019178,2]
[330555630,1719565841587,-1841.93,0.00019178,2]
[330555631,1719565841596,-699.44,0.00019178,2]
[330555632,1719565841606,-1855.31,0.00019178,2]
[330555633,1719565841615,-636.63841714,0.00019178,2]
[330555634,1719565841625,-513.97,0.00019178,2]
[330555635,1719565841634,-1180.58,0.00019178,2]
[330555636,1719565841644,-769.2,0.00019178,2]
[330555637,1719565841654,-881.11,0.00019178,2]
[330555638,1719565841663,-881.11,0.00019178,2]
[330555639,1719565841672,-881.11,0.00019178,2]
[330555640,1719565841681,-500.0,0.00019178,2]
[330555641,1719565841691,-500.0,0.00019178,2]
[330555642,1719565841700,-881.11,0.00019178,2]
[330555643,1719565841713,-1231.04,0.00019178,2]
[330555644,1719565841722,-500.0,0.00019178,2]
[330555645,1719565841732,-881.11,0.00019178,2]
[330555646,1719565841741,-4348.47,0.00019178,2]
[330555647,1719565841751,-881.11,0.00019178,2]
[330555648,1719565841760,-1216.89,0.00019178,2]
[330555649,1719565841769,-881.11,0.00019178,2]
[330555650,1719565841779,-500.0,0.00019178,2]
[330555651,1719565841788,-500.0,0.00019178,2]
[330555652,1719565841797,-1853.52,0.00019178,2]
[330555653,1719565841807,-500.0,0.00019178,2]
[330555654,1719565841816,-793.4,0.00019178,2]
[330555655,1719565841825,-500.0,0.00019178,2]
[330555656,1719565841835,-818.57,0.00019178,2]
[330555657,1719565841844,-4102.63,0.00019178,2]
[330555658,1719565841854,-3427.97,0.00019178,2]
[330555659,1719565841863,-2268.21,0.00019178,2]
[330555660,1719565841872,-500.0,0.00019178,2]
[330555661,1719565841881,-500.0,0.00019178,2]
[330555662,1719565841891,-559.71,0.00019178,2]
[330555663,1719565841900,-3145.4,0.00019178,2]
[330555664,1719565841910,-819.64,0.00019178,2]
[330555665,1719565841919,-1160.93,0.00019178,2]
[330555666,1719565841929,-1155.82,0.00019178,2]
[330555667,1719565841938,-500.0,0.00019178,2]
[330555668,1719565841948,-504.16,0.00019178,2]
[330555669,1719565841958,-500.0,0.00019178,2]
[330555670,1719565841967,-500.0,0.00019178,2]
[330555671,1719565841976,-884.94,0.00019178,2]
[330555672,1719565841988,-500.0,0.00019178,2]
[330555673,1719565841997,-500.0,0.00019178,2]
[330555674,1719565842006,-500.0,0.00019178,2]
[330555675,1719565842015,-500.0,0.00019178,2]
[330555676,1719565842025,-500.0,0.00019178,2]
[330555677,1719565842035,-1786.32,0.00019178,2]
[330555678,1719565842046,-1102.45,0.00019178,2]
[330555679,1719565842056,-675.37,0.00019178,2]
[330555680,1719565842066,-2485.59,0.00019178,2]
[330555681,1719565842077,-500.0,0.00019178,2]
[330555682,1719565842088,-151.0,0.00019178,2]
[330555683,1719565842097,-151.0,0.00019178,2]
[330555684,1719565842106,-2116.99,0.00019178,2]
[330555685,1719565842116,-151.0,0.00019178,2]
[330555686,1719565842126,-151.0,0.00019178,2]
[330555687,1719565842135,-151.0,0.00019178,2]
[330555688,1719565842144,-151.0,0.00019178,2]
[330555689,1719565842154,-151.0,0.00019178,2]
[330555690,1719565842163,-511.04,0.00019178,2]
[330555691,1719565842172,-151.0,0.00019178,2]
[330555692,1719565842184,-151.0,0.00019178,2]
[330555693,1719565842195,-151.0,0.00019178,2]
[330555694,1719565842204,-151.0,0.00019178,2]
[330555695,1719565842213,-500.0,0.00019178,2]
[330555696,1719565842222,-986.14,0.00019178,2]
[330555697,1719565842231,-230.136879,0.00019178,2]
[330555698,1719565842241,-500.0,0.00019178,2]
[330555699,1719565842250,-500.0,0.00019178,2]
[330555700,1719565842259,-500.0,0.00019178,2]
[330555701,1719565842269,-576.11,0.00019178,2]
[330555702,1719565842279,-500.0,0.00019178,2]
[330555703,1719565842289,-500.0,0.00019178,2]
[330555704,1719565842298,-500.0,0.00019178,2]
[330555705,1719565842308,-500.0,0.00019178,2]
[330555706,1719565842317,-971.62,0.00019178,2]
[330555707,1719565842326,-637.76,0.00019178,2]
[330555708,1719565842336,-669.84,0.00019178,2]
[330555709,1719565842346,-837.95,0.00019178,2]
[330555710,1719565842355,-500.0,0.00019178,2]
[330555711,1719565842364,-500.0,0.00019178,2]
[330555712,1719565842373,-151.0,0.00019178,2]
[330555713,1719565842384,-151.0,0.00019178,2]
[330555714,1719565842404,-500.0,0.00019178,2]
[330555715,1719565842413,-151.0,0.00019178,2]
[330555716,1719565842422,-161.94383451,0.00019178,2]
[330555717,1719565842433,-500.0,0.00019178,2]
[330555718,1719565842442,-151.0,0.00019178,2]
[330555719,1719565842452,-500.0,0.00019178,2]
[330555720,1719565842465,-151.0,0.00019178,2]
[330555721,1719565842474,-151.0,0.00019178,2]
[330555722,1719565842483,-500.0,0.00019178,2]
[330555723,1719565842492,-151.0,0.00019178,2]
[330555724,1719565842502,-500.0,0.00019178,2]
[330555725,1719565842511,-151.0,0.00019178,2]
[330555726,1719565842520,-151.0,0.00019178,2]
[330555727,1719565842529,-151.0,0.00019178,2]
[330555728,1719565842538,-500.0,0.00019178,2]
[330555729,1719565842549,-151.0,0.00019178,2]
[330555730,1719565842559,-500.0,0.00019178,2]
[330555731,1719565842568,-151.0,0.00019178,2]
[330555732,1719565842578,-500.0,0.00019178,2]
[330555733,1719565842589,-500.0,0.00019178,2]
[330555734,1719565842598,-182.56268,0.00019178,2]
[330555735,1719565842607,-500.0,0.00019178,2]
[330555736,1719565842616,-562.48,0.00019178,2]
[330555737,1719565842625,-507.76,0.00019178,2]
[330555738,1719565842635,-2334.53,0.00019178,2]
[330555739,1719565842644,-912.25,0.00019178,2]
[330555740,1719565842654,-500.0,0.00019178,2]
[330555741,1719565842664,-500.0,0.00019178,2]
[330555742,1719565842673,-1140.42,0.00019178,2]
[330555743,1719565842683,-151.0,0.00019178,2]
[330555744,1719565842693,-151.0,0.00019178,2]
[330555745,1719565842702,-732.07,0.00019178,2]
[330555746,1719565842712,-1241.98,0.00019178,2]
[330555747,1719565842721,-847.07,0.00019178,2]
[330555748,1719565842731,-151.0,0.00019178,2]
[330555749,1719565842741,-500.0,0.00019178,2]
[330555750,1719565842750,-151.0,0.00019178,2]
[330555751,1719565842760,-1142.49,0.00019178,2]
[330555752,1719565842769,-500.0,0.00019178,2]
[330555753,1719565842779,-500.0,0.00019178,2]
[330555754,1719565843029,-500.0,0.00019178,2]
[330555755,1719565843038,-500.0,0.00019178,2]
[330555756,1719565843048,-1938.56,0.00019178,2]
[330555757,1719565843057,-500.0,0.00019178,2]
[330555758,1719565843067,-500.0,0.00019178,2]
[330555759,1719565843076,-500.0,0.00019178,2]
[330555760,1719565843086,-500.0,0.00019178,2]
[330555761,1719565843096,-2211.25,0.00019178,2]
[330555762,1719565843105,-500.0,0.00019178,2]
[330555763,1719565843114,-500.0,0.00019178,2]
[330555764,1719565843126,-943.63,0.00019178,2]
[330555765,1719565843136,-3436.42,0.00019178,2]
[330555766,1719565843146,-500.0,0.00019178,2]
[330555767,1719565843155,-515.81,0.00019178,2]
[330555768,1719565843164,-500.0,0.00019178,2]
[330555769,1719565843174,-500.0,0.00019178,2]
[330555770,1719565843183,-1020.0,0.00019178,2]
[330555771,1719565843192,-500.0,0.00019178,2]
[330555772,1719565843201,-1401.49,0.00019178,2]
[330555773,1719565843211,-2075.16,0.00019178,2]
[330555774,1719565843220,-605.09,0.00019178,2]
[330555775,1719565843230,-1516.33,0.00019178,2]
[330555776,1719565843239,-202.44118,0.00019178,2]
[330555777,1719565843249,-500.0,0.00019178,2]
[330555778,1719565843258,-550.69,0.00019178,2]
[330555779,1719565843268,-202.44118,0.00019178,2]
[330555780,1719565843277,-202.44118,0.00019178,2]
[330555781,1719565843286,-500.0,0.00019178,2]
[330555782,1719565843295,-1847.71,0.00019178,2]
[330555783,1719565843305,-202.44118,0.00019178,2]
[330555784,1719565843315,-202.44118,0.00019178,2]
[330555785,1719565843324,-202.44118,0.00019178,2]
[330555786,1719565843334,-2377.0,0.00019178,2]
[330555788,1719565843345,-202.44118,0.00019178,2]
[330555790,1719565843354,-500.0,0.00019178,2]
[330555792,1719565843363,-202.44118,0.00019178,2]
[330555794,1719565843372,-500.0,0.00019178,2]
[330555796,1719565843382,-1174.31,0.00019178,2]
[330555797,1719565843392,-202.44118,0.00019178,2]
[330555798,1719565843404,-2843.72,0.00019178,2]
[330555799,1719565843413,-2527.85,0.00019178,2]
[330555800,1719565843423,-202.44118,0.00019178,2]
[330555801,1719565843433,-551.04,0.00019178,2]
[330555802,1719565843442,-500.0,0.00019178,2]
[330555803,1719565843454,-202.44118,0.00019178,2]
[330555804,1719565843469,-202.44118,0.00019178,2]
[330555805,1719565843478,-500.0,0.00019178,2]
[330555806,1719565843487,-202.44118,0.00019178,2]
[330555807,1719565843497,-500.0,0.00019178,2]
[330555808,1719565843507,-202.44118,0.00019178,2]
[330555809,1719565843516,-500.0,0.00019178,2]
[330555810,1719565843525,-500.0,0.00019178,2]
[330555811,1719565843538,-202.44118,0.00019178,2]
[330555812,1719565843547,-1219.22,0.00019178,2]
[330555813,1719565843557,-500.0,0.00019178,2]
[330555814,1719565843567,-202.44118,0.00019178,2]
[330555815,1719565843576,-500.0,0.00019178,2]
[330555816,1719565843586,-618.06,0.00019178,2]
[330555817,1719565843597,-202.44118,0.00019178,2]
[330555818,1719565843607,-202.44118,0.00019178,2]
[330555819,1719565843616,-202.44118,0.00019178,2]
[330555820,1719565843626,-202.441181,0.00019178,2]
[330555821,1719565843635,-500.0,0.00019178,2]
[330555822,1719565843645,-500.0,0.00019178,2]
[330555823,1719565843655,-500.0,0.00019178,2]
[330555824,1719565843664,-500.0,0.00019178,2]
[330555825,1719565843673,-500.0,0.00019178,2]
[330555826,1719565843683,-1950.36,0.00019178,2]
[330555827,1719565843692,-500.0,0.00019178,2]
[330555828,1719565843701,-1950.36,0.00019178,2]
[330555829,1719565843711,-1024.67,0.00019178,2]
[330555830,1719565843720,-2971.04,0.00019178,2]
[330555831,1719565843730,-639.48,0.00019178,2]
[330555832,1719565843739,-1950.36,0.00019178,2]
[330555833,1719565843749,-1126.73,0.00019178,2]
[330555834,1719565843758,-1950.36,0.00019178,2]
[330555835,1719565843768,-1950.36,0.00019178,2]
[330555836,1719565843777,-500.0,0.00019178,2]
[330555837,1719565843786,-1202.93,0.00019178,2]
[330555838,1719565843795,-1245.78,0.00019178,2]
[330555839,1719565843805,-1424.11,0.00019178,2]
[330555840,1719565843815,-1950.36,0.00019178,2]
[330555841,1719565843825,-876.21,0.00019178,2]
[330555842,1719565843834,-500.0,0.00019178,2]
[330555843,1719565843845,-608.22,0.00019178,2]
[330555844,1719565843855,-1890.42,0.00019178,2]
[330555845,1719565843869,-777.37,0.00019178,2]
[330555846,1719565843878,-1950.36,0.00019178,2]
[330555847,1719565843887,-500.0,0.00019178,2]
[330555849,1719565843896,-1950.36,0.00019178,2]
[330555851,1719565843909,-1950.36,0.00019178,2]
[330555852,1719565843919,-1950.36,0.00019178,2]
[330555853,1719565843930,-2540.28,0.00019178,2]
[330555854,1719565843940,-1950.36,0.00019178,2]
[330555855,1719565843949,-802.05,0.00019178,2]
[330555856,1719565843959,-500.0,0.00019178,2]
[330555857,1719565843969,-500.0,0.00019178,2]
[330555858,1719565843978,-1950.36,0.00019178,2]
[330555859,1719565843987,-500.0,0.00019178,2]
[330555860,1719565843997,-1950.36,0.00019178,2]
[330555862,1719565844006,-698.45,0.00019178,2]
[330555864,1719565844016,-804.29,0.00019178,2]
[330555865,1719565844025,-225.98241691,0.00019178,2]
[330555866,1719565844034,-500.0,0.00019178,2]
[330555867,1719565844043,-1118.26,0.00019178,2]
[330555868,1719565844052,-500.0,0.00019178,2]
[330555869,1719565844061,-500.0,0.00019178,2]
[330555870,1719565844070,-500.0,0.00019178,2]
[330555871,1719565844080,-500.0,0.00019178,2]
[330555872,1719565844091,-500.0,0.00019178,2]
[330555873,1719565844100,-500.0,0.00019178,2]
[330555874,1719565844109,-510.12,0.00019178,2]
[330555875,1719565844119,-618.39,0.00019178,2]
[330555876,1719565844128,-587.04,0.00019178,2]
[330555877,1719565844138,-1320.33,0.00019178,2]
[330555878,1719565844147,-500.0,0.00019178,2]
[330555879,1719565844156,-1381.24,0.00019178,2]
[330555880,1719565844166,-500.0,0.00019178,2]
[330555881,1719565844175,-151.0,0.00019178,2]
[330555882,1719565844184,-151.0,0.00019178,2]
[330555883,1719565844194,-275.897227,0.00019178,2]
[330555884,1719565844203,-151.0,0.00019178,2]
[330555885,1719565844212,-930.15,0.00019178,2]
[330555886,1719565844221,-500.0,0.00019178,2]
[330555887,1719565844231,-275.897227,0.00019178,2]
[330555888,1719565844240,-151.0,0.00019178,2]
[330555889,1719565844249,-1399.99,0.00019178,2]
[330555890,1719565844259,-275.897227,0.00019178,2]
[330555891,1719565844268,-151.0,0.00019178,2]
[330555892,1719565844277,-275.897227,0.00019178,2]
[330555893,1719565844287,-976.87,0.00019178,2]
[330555894,1719565844296,-151.0,0.00019178,2]
[330555895,1719565844306,-275.897227,0.00019178,2]
[330555896,1719565844316,-151.0,0.00019178,2]
[330555897,1719565844325,-586.4,0.00019178,2]
[330555898,1719565844335,-2137.26,0.00019178,2]
[330555899,1719565844345,-275.897227,0.00019178,2]
[330555900,1719565844355,-151.0,0.00019178,2]
[330555901,1719565844364,-570.30801261,0.00019178,2]
[330555902,1719565844374,-275.897227,0.00019178,2]
[330555903,1719565844384,-173.604558,0.00019178,2]
[330555904,1719565844393,-275.897227,0.00019178,2]
[330555905,1719565844402,-500.0,0.00019178,2]
[330555906,1719565844411,-275.897227,0.00019178,2]
[330555907,1719565844421,-500.0,0.00019178,2]
[330555908,1719565844430,-275.897227,0.00019178,2]
[330555909,1719565844439,-3286.68,0.00019178,2]
[330555910,1719565844449,-500.0,0.00019178,2]
[330555911,1719565844462,-275.897227,0.00019178,2]
[330555912,1719565844471,-275.897227,0.00019178,2]
[330555913,1719565844480,-1025.21,0.00019178,2]
[330555914,1719565844489,-275.897227,0.00019178,2]
[330555915,1719565844499,-275.897227,0.00019178,2]
[330555916,1719565844510,-500.0,0.00019178,2]
[330555917,1719565844519,-3614.84,0.00019178,2]
[330555918,1719565844530,-275.897227,0.00019178,2]
[330555919,1719565844541,-275.897227,0.00019178,2]
[330555920,1719565844551,-275.897227,0.00019178,2]
[330555921,1719565844562,-275.897227,0.00019178,2]
[330555922,1719565844572,-275.897227,0.00019178,2]
[330555923,1719565844582,-275.897223,0.00019178,2]
[330555924,1719565844593,-500.0,0.00019178,2]
[330555925,1719565844602,-500.0,0.00019178,2]
[330555926,1719565844611,-500.0,0.00019178,2]
[330555927,1719565844620,-11045.35,0.00019178,2]
[330555928,1719565844629,-151.0,0.00019178,2]
[330555929,1719565844639,-151.0,0.00019178,2]
[330555930,1719565844650,-500.0,0.00019178,2]
[330555931,1719565844660,-500.0,0.00019178,2]
[330555932,1719565844670,-151.0,0.00019178,2]
[330555933,1719565844679,-500.0,0.00019178,2]
[330555934,1719565844688,-151.0,0.00019178,2]
[330555935,1719565844698,-500.0,0.00019178,2]
[330555936,1719565844708,-500.0,0.00019178,2]
[330555937,1719565844717,-151.0,0.00019178,2]
[330555938,1719565844729,-500.0,0.00019178,2]
[330555939,1719565844739,-500.0,0.00019178,2]
[330555940,1719565844750,-500.0,0.00019178,2]
[330555941,1719565844758,-500.0,0.00019178,2]
[330555942,1719565844768,-1907.48,0.00019178,2]
[330555943,1719565844777,-500.0,0.00019178,2]
[330555944,1719565844786,-1031.12,0.00019178,2]
[330555945,1719565844795,-500.0,0.00019178,2]
[330555946,1719565844805,-500.0,0.00019178,2]
[330555947,1719565844814,-1161.15,0.00019178,2]
[330555948,1719565844823,-500.0,0.00019178,2]
[330555949,1719565844832,-154.46854739,0.00019178,2]
[330555950,1719565844843,-1322.61,0.00019178,2]
[330555951,1719565844852,-500.0,0.00019178,2]
[330555952,1719565844861,-500.0,0.00019178,2]
[330555953,1719565844871,-2863.16,0.00019178,2]
[330555954,1719565844881,-500.0,0.00019178,2]
[330555955,1719565844890,-500.0,0.00019178,2]
[330555956,1719565844900,-500.0,0.00019178,2]
[330555957,1719565844911,-556.27,0.00019178,2]
[330555958,1719565844921,-500.0,0.00019178,2]
[330555959,1719565844930,-2689.56,0.00019178,2]
[330555960,1719565844940,-3336.89,0.00019178,2]
[330555961,1719565844950,-500.0,0.00019178,2]
[330555962,1719565844959,-500.0,0.00019178,2]
[330555963,1719565844969,-3317.68,0.00019178,2]
[330555964,1719565844978,-151.0,0.00019178,2]
[330555965,1719565844987,-962.81,0.00019178,2]
[330555966,1719565844997,-151.0,0.00019178,2]
[330555967,1719565845006,-500.0,0.00019178,2]
[330555968,1719565845015,-151.0,0.00019178,2]
[330555969,1719565845025,-500.0,0.00019178,2]
[330555970,1719565845034,-500.0,0.00019178,2]
[330555971,1719565845043,-151.0,0.00019178,2]
[330555972,1719565845052,-151.0,0.00019178,2]
[330555973,1719565845062,-153.757533,0.00019178,2]
[330555974,1719565845071,-749.88,0.00019178,2]
[330555975,1719565845081,-562.24,0.00019178,2]
[330555976,1719565845091,-500.0,0.00019178,2]
[330555977,1719565845100,-500.0,0.00019178,2]
[330555978,1719565845512,-500.0,0.00019178,2]
[330555979,1719565845522,-500.0,0.00019178,2]
[330555980,1719565845531,-500.0,0.00019178,2]
[330555981,1719565845543,-151.0,0.00019178,2]
[330555982,1719565845553,-151.0,0.00019178,2]
[330555983,1719565845563,-151.0,0.00019178,2]
[330555984,1719565845572,-500.0,0.00019178,2]
[330555985,1719565845581,-151.0,0.00019178,2]
[330555986,1719565845592,-151.0,0.00019178,2]
[330555987,1719565845601,-1917.3,0.00019178,2]
[330555988,1719565845611,-151.0,0.00019178,2]
[330555989,1719565845620,-151.0,0.00019178,2]
[330555990,1719565845630,-151.0,0.00019178,2]
[330555991,1719565845640,-1095.45,0.00019178,2]
[330555992,1719565845649,-151.0,0.00019178,2]
[330555993,1719565845659,-151.0,0.00019178,2]
[330555994,1719565845668,-500.0,0.00019178,2]
[330555995,1719565845678,-152.131601,0.00019178,2]
[330555996,1719565845687,-151.0,0.00019178,2]
[330555997,1719565845697,-1320.0,0.00019178,2]
[330555998,1719565845707,-151.0,0.00019178,2]
[330555999,1719565845716,-151.0,0.00019178,2]
[330556000,1719565845725,-841.18,0.00019178,2]
[330556001,1719565845735,-500.0,0.00019178,2]
[330556002,1719565845744,-151.0,0.00019178,2]
[330556003,1719565845753,-971.36,0.00019178,2]
[330556004,1719565845763,-500.0,0.00019178,2]
[330556005,1719565845771,-151.0,0.00019178,2]
[330556006,1719565845781,-1460.57,0.00019178,2]
[330556007,1719565845790,-500.0,0.00019178,2]
[330556008,1719565845800,-151.0,0.00019178,2]
[330556009,1719565845809,-151.0,0.00019178,2]
[330556010,1719565845819,-500.0,0.00019178,2]
[330556011,1719565845828,-151.0,0.00019178,2]
[330556012,1719565845839,-1826.56,0.00019178,2]
[330556013,1719565845848,-500.0,0.00019178,2]
[330556014,1719565845858,-151.0,0.00019178,2]
[330556015,1719565845868,-1011.71,0.00019178,2]
[330556016,1719565845878,-500.0,0.00019178,2]
[330556017,1719565845888,-151.0,0.00019178,2]
[330556018,1719565845898,-3759.57,0.00019178,2]
[330556019,1719565845909,-500.0,0.00019178,2]
[330556020,1719565845920,-1156.61,0.00019178,2]
[330556021,1719565845929,-151.0,0.00019178,2]
[330556022,1719565845939,-151.0,0.00019178,2]
[330556023,1719565845949,-878.27,0.00019178,2]